Cogmind - Beta 17 @@@ ROGUE MODE // 2026.07.11 @ 01:01:51 Player: obl-vn Result: Destroyed by Autobeam Turret with Autobeam Performance ------------- Evolutions (0) 0 Regions Visited (2) 400 Robots Destroyed (34) 170 Value Destroyed (642) 642 Prototype IDs (2) 40 Alien Tech Used (0) 0 Bonus (8000) 8000 TOTAL SCORE: 9252 Bonus ------- Prayed to X0-1V1 5000 Major X0-1V1 Interference 3000 Cogmind --------- Core Integrity 0/150 Matter 896/900 Energy 887/900 System Corruption 0% Temperature Warning (320) Movement Rolling (90) Location -10/Subcaves Parts ------- > --- POWER (1) -------- (None) > --- PROPULSION (3) --- Armored Wheel Armored Wheel > --- UTILITY (1) ------ Medium Storage Unit > --- WEAPON (2) ------- Beam Cannon (fused) Subdweller Machine Gun (fused) > --- INVENTORY (10) --- High-capacity Matter Pod (200) Scrap Shield Hacking Suite Grenade Launcher Peak State ------------ > --- POWER ------------ Ion Engine > --- PROPULSION ------- Light Treads Light Treads > --- UTILITY ---------- Scrap Shield > --- WEAPON ----------- Beam Cannon Beam Cannon > --- INVENTORY -------- Improved Flight Unit Improved Flight Unit Medium Storage Unit Hacking Suite Beam Cannon [Rating: 10] Favorites ----------- Power Ion Engine Engine Ion Engine Propulsion Light Treads Treads Light Treads Wheel Armored Wheel Utility Scrap Shield Storage Medium Storage Unit Processor Targeting Computer Protection Scrap Shield Weapon Beam Cannon Energy Gun Medium Laser Energy Cannon Beam Cannon Ballistic Gun Assault Rifle Launcher Grenade Launcher Build | -11 -10 -10 ------- Run | Yrd Mat Sub Slots Evolved . | . . . Power . | . . . Propulsion . | . . . Utility . | . . . Weapon . | . . . Parts Attached 19 | 6 2 11 Power 2 | 1 . 1 Engine 2 | 1 . 1 Core . | . . . Reactor . | . . . Propulsion 5 | 2 . 3 Treads 4 | 2 . 2 Leg . | . . . Wheel 1 | . . 1 Hover . | . . . Flight . | . . . Utility 4 | 1 2 1 Device . | . . . Storage 2 | 1 1 . Processor 1 | . 1 . Hackware . | . . . Protection 1 | . . 1 Artifact . | . . . Weapon 8 | 2 . 6 Energy Gun 1 | 1 . . Energy Cannon 3 | . . 3 Ballistic Gun 3 | 1 . 2 Ballistic Cannon . | . . . Launcher 1 | . . 1 Special Weapon . | . . . Impact Weapon . | . . . Slashing Weapon . | . . . Piercing Weapon . | . . . Special Melee Weapon . | . . . Unidentified Prototypes . | . . . Parts Lost 8 | . . 8 Power 1 | . . 1 Propulsion 4 | . . 4 Utility . | . . . Weapon 3 | . . 3 Highest Loss Streak 4 | . . 4 To Critical Strikes 1 | . . 1 Average Backups 6 | 1 6 6 Power . | . 1 . Propulsion . | . 1 . Utility 2 | . 1 2 Weapon 2 | . 3 2 Tool/Special . | . . . Unused Backups 10 | . . 10 Power 1 | . . 1 Propulsion 2 | . . 2 Utility 4 | . . 4 Weapon 3 | . . 3 Tool/Special . | . . . Average Slot Usage (%) 90 | . 92 89 Engine 13 | . 14 13 Treads 27 | . 28 26 Wheel 1 | . . 1 Storage 8 | . 14 5 Processor 5 | . 7 4 Protection 5 | . . 8 Energy Gun 5 | . 14 1 Energy Cannon 15 | . . 23 Ballistic Gun 6 | . 14 2 Peak Build Rating 10 | 6 9 10 Average Rating 8 | 4 6 8 On Entrance 5 | . 6 9 Avg Prop Armor Cover (%) 12 | . . 12 Naked Turns . | . . . Heaviest Build 30 | 14 19 30 Greatest Support 40 | 40 40 40 Greatest Overweight (x) 1 | . . 1 Average Overweight (x) . | . . . Largest Inventory Capacity 10 | 8 10 10 Average Capacity 7 | 7 8 7 Most Carried 10 | 5 10 10 Average Carried 6 | 1 6 6 Final Capacity 10 | 8 10 10 Final Carried 10 | 1 10 5 Class Distribution -------------------- 100% | Mutant Dominant Class ---------------- Mutant | -10/Materials Mutant | -10/Subcaves Resources | -11 -10 -10 ----------- Run | Yrd Mat Sub Matter Collected 1119 | 257 219 643 Remotely . | . . . Salvage Created 978 | 65 307 606 Parts 58 | 3 23 32 Haulers Intercepted 2 | . 2 . Recyclers Shooed . | . . . Parts Field Recycled . | . . . Retrieved Matter . | . . . Parts Self-Destructed 38 | . . 38 Prevented . | . . . Parts Restored . | . . . Kills | -11 -10 -10 ------- Run | Yrd Mat Sub Combat Hostiles Destroyed 28 | . 7 21 Guns 13 | . 7 6 Cannons 15 | . . 15 Classes Destroyed 7 | 1 5 1 Hauler 2 | . 2 . Recycler 1 | 1 . . Operator 1 | . 1 . Watcher 2 | . 2 . Swarmer 19 | . 6 13 Grunt 5 | . 1 4 Subdweller 4 | . . 4 Best Kill Streak 4 | 1 4 3 Combat Bots Only 3 | . 3 3 Max Kills in Single Turn 1 | 1 1 1 Gunslinging . | . . . Exploded . | . . . Melee . | . . . Uniques/NPCs Destroyed . | . . . Combat | -11 -10 -10 -------- Run | Yrd Mat Sub Hostile Shots Fired 265 | . 34 231 Missed 95 | . 11 84 Hits 170 | . 23 147 Projectile 170 | . 23 147 Critical Strikes 3 | . 1 2 Damage Taken 1832 | . 225 1607 Core 392 | . 30 362 Absorbed by Shields . | . . . Core Remaining (%) 100 | 100 . . Volleys Fired 90 | 1 32 57 Largest 2 | 2 2 2 Hottest 120 | 70 70 120 Shots Fired 179 | 2 62 115 Gun 106 | 2 62 42 Cannon 72 | . . 72 Launcher 1 | . . 1 Special . | . . . Kinetic 59 | 1 32 26 Thermal 119 | 1 30 88 Explosive 1 | . . 1 Electromagnetic . | . . . Robot Hit Streak 22 | 1 7 22 Robot Miss Streak 5 | 1 3 5 Penetration Max . | . . . Secondary Targets 2 | . 1 1 Max Gunslinging Chain 1 | . 1 1 Shots Hit Robots 107 | 1 38 68 Core Hits 50 | 1 18 31 Critical Kills . | . . . Critical Parts Destroyed . | . . . Critical Strikes 1 | . 1 . Burn 1 | . 1 . Melee Attacks . | . . . Impact . | . . . Slashing . | . . . Piercing . | . . . Sneak Attacks . | . . . Combat Hostiles . | . . . Follow-up Attacks . | . . . Damage Inflicted 1623 | 15 476 1132 Guns 944 | 15 476 453 Cannons 679 | . . 679 Explosions . | . . . Melee . | . . . Ramming . | . . . Kinetic 505 | 15 237 253 Thermal 1118 | . 239 879 Explosive . | . . . Electromagnetic . | . . . Impact . | . . . Slashing . | . . . Piercing . | . . . Highest Corruption 18 | . . 18 Average Corruption 2 | . . 2 Corruption Purged . | . . . Corruption Blocked . | . . . Effects 18 | . . 18 Message Errors 3 | . . 3 Matter Fused 5 | . . 5 Heat Flow Errors 3 | . . 3 Energy Discharges 3 | . . 3 Data Loss (minor) 2 | . . 2 Data Loss (major) 1 | . . 1 Misfires 1 | . . 1 Overload Shots . | . . . Overflow Damage 18 | . . 18 Projectiles 18 | . . 18 Explosions . | . . . Melee . | . . . Knockbacks . | . . . Impact . | . . . Kinetic . | . . . Secondary . | . . . Self-Inflicted Damage . | . . . Shots . | . . . Rammed . | . . . Targets Rammed . | . . . Kicked . | . . . Crushed . | . . . Highest Temperature 225 | . 42 225 Average Temperature 39 | . 31 42 Received Heat Transfer 510 | . 78 432 Siege Activations . | . . . Martial Activations . | . . . Shielding Activations . | . . . Robots Disrupted . | . . . Combat Hostiles . | . . . Robots Corrupted . | . . . Combat Hostiles . | . . . Parts Fried . | . . . Impact Corruptions . | . . . Robots Melted . | . . . Combat Hostiles . | . . . Parts Melted 4 | . 2 2 Heat Transferred 2775 | . 777 1998 Parts Sabotaged . | . . . Parts Stolen . | . . . Parts Stripped . | . . . Power Chain Reactions . | . . . Alert | -11 -10 -10 ------- Run | Yrd Mat Sub Maximum Alert Level . | . . . Low Security (%) 100 | 100 100 . Level 1 . | . . . Level 2 . | . . . Level 3 . | . . . Level 4 . | . . . Level 5 . | . . . High Security . | . . . Max Security . | . . . Peak Influence 91 | 5 91 . Initial . | . . . Average 23 | . 25 . Influence Increases 712 | 5 277 430 Destroy 0b10 Robot/C 480 | . 140 340 Destroy 0b10 Robot/NC 30 | 5 25 . Destroy Leader 38 | . 38 . Successful Hack 28 | . 28 . Destroy Structure 1 | . 1 . Lose Combat Pursuer 135 | . 45 90 Influence Decreases 538 | 5 238 295 Entered New Map 19 | . . 19 Time Decay 459 | 5 238 216 Lost Part 60 | . . 60 Squads Dispatched . | . . . Investigation . | . . . Extermination . | . . . Reinforcement . | . . . Assault . | . . . Garrison . | . . . Intercept . | . . . Searches Triggered . | . . . Construction Impeded . | . . . Haulers Reinforced . | . . . Active Scanning Responses . | . . . Cargo Convoy Interrupts . | . . . Stealth | -11 -10 -10 --------- Run | Yrd Mat Sub Distress Signals . | . . . Communications Jammed . | . . . Distress Signals . | . . . Times Spotted 55 | . 16 39 Peak Tracking Total 6 | . 4 6 Tactical Retreats 5 | . 2 3 Traps | -11 -10 -10 ------- Run | Yrd Mat Sub Traps Triggered . | . . . Indirectly . | . . . Trap Hack Attempts . | . . . Triggered . | . . . Disarmed . | . . . Reprogrammed . | . . . Reused . | . . . Traps Extracted . | . . . Installed 3 | . . 3 Triggered . | . . . Machines | -11 -10 -10 ---------- Run | Yrd Mat Sub Machines Disabled 1 | . . 1 Max in Single Turn 1 | . . 1 Machines Repaired . | . . . Machines Dismantled . | . . . Machines Sabotaged . | . . . Overloaded Fab Kills . | . . . Hacking | -11 -10 -10 --------- Run | Yrd Mat Sub Machines Accessed 7 | . 7 . Terminals 7 | . 7 . Fabricators . | . . . Repair Stations . | . . . Recycling Units . | . . . Scanalyzers . | . . . Garrison Access . | . . . Total Hacks 27 | . 27 . Successful 15 | . 15 . Failed 12 | . 12 . Catastrophic 1 | . 1 . Database Lockouts . | . . . Manual 20 | . 20 . Terminals 27 | . 27 . Fabricators . | . . . Repair Stations . | . . . Recycling Units . | . . . Scanalyzers . | . . . Garrison Access . | . . . Terminal Hacks 8 | . 8 . Robot Schematic 1 | . 1 . Robot Analysis 1 | . 1 . Prototype ID Bank 1 | . 1 . Locate Traps 4 | . 4 . Zone Layout 1 | . 1 . Fabricator Hacks . | . . . Repair Station Hacks . | . . . Recycling Unit Hacks . | . . . Scanalyzer . | . . . Garrison Access Hacks . | . . . Unauthorized Hacks 7 | . 7 . Terminals 7 | . 7 . Botnet 2 | . 2 . Skim 5 | . 5 . Fabricators . | . . . Repair Stations . | . . . Recycling Units . | . . . Scanalyzers . | . . . Garrison Access . | . . . Data Cores Recovered 1 | . 1 . Used . | . . . Hacking Detections 7 | . 7 . Full Trace Events . | . . . Feedback Events . | . . . Feedback Blocked . | . . . Robot Schematics Acquired 1 | . 1 . Robots Built . | . . . Authchips . | . . . Time . | . . . Total Robot Build Rating . | . . . Part Schematics Acquired . | . . . Parts Built . | . . . Authchips . | . . . Time . | . . . Total Part Build Rating . | . . . Part Studies Acquired . | . . . Parts Repaired . | . . . Time . | . . . Parts Recycled . | . . . Recycled Matter . | . . . Retrieved Matter . | . . . Retrieved Components . | . . . Parts Scanalyzed . | . . . Part Schematics Acquired . | . . . Parts Damaged . | . . . Bothacking | -11 -10 -10 ------------ Run | Yrd Mat Sub Used RIF Installer . | . . . Robots Hacked . | . . . Non-combat . | . . . Combat . | . . . Robot Hacks Applied . | . . . Relay Couplers Released . | . . . Fabnet Peak Effective % . | . . . Robots Rewired . | . . . Allies Hacked . | . . . Hacks Repelled . | . . . Allies | -11 -10 -10 -------- Run | Yrd Mat Sub Total Allies . | . . . Largest Group . | . . . Highest-Rated Group . | . . . Highest-Rated Ally . | . . . Total Orders . | . . . Ally Attacks . | . . . Total Damage . | . . . Kills . | . . . Allies Corrupted . | . . . Allies Melted . | . . . X0-1V1 Amusement Gains 22 | . 22 . Good Acts 21 | . . 21 Bad Acts 32 | . . 32 Intel | -11 -10 -10 ------- Run | Yrd Mat Sub Active Infowar (turns) . | . . . Robot Analysis Total 1 | . 1 . Derelict Logs Recovered . | . . . Drone Launches . | . . . Drone Recoveries . | . . . Exploration | -11 -10 -10 ------------- Run | Yrd Mat Sub Turns Passed 2953 | 79 898 1976 Spaces Moved 1591 | 52 435 1104 Core 20 | 20 . . Treads 1496 | 32 435 1029 Legs . | . . . Wheels 75 | . . 75 Hover . | . . . Flight . | . . . Fastest Speed 50 | 50 160 90 Average Speed 155 | 117 160 155 Slowest Speed 160 | 160 160 160 Overloaded Moves . | . . . Propulsion Burnouts . | . . . Robots Hopped . | . . . Potential Cave-ins . | . . . Cave-ins Triggered . | . . . Exploration Rate (%) 47 | 3 89 51 Regions Visited 2 Branch Regions 1 Pre-discovered Areas 1 | . 1 . Known Exits Taken 1 | . 1 . Unknown Exits Taken 1 | 1 . . Scrap Searched 6 | . . 6 Spaces Dug . | . . . Terrain Destroyed 7 | . . 7 Melee . | . . . Projectile . | . . . AOE 7 | . . 7 Terrain Rammed . | . . . Walls Destroyed . | . . . Machines Disabled . | . . . Actions | -11 -10 -10 --------- Run | Yrd Mat Sub Total 1907 | 67 576 1264 Wait 146 | 3 97 46 Move 1589 | 51 434 1104 Hop . | . . . Pick Up 32 | 6 10 16 Fast Attach 3 | 1 . 2 Attach 14 | 5 1 8 Detach 1 | . . 1 Swap 8 | . 1 7 Drop 17 | . 1 16 Fire 90 | 1 32 57 Melee . | . . . Ram . | . . . Kick . | . . . Crush . | . . . Escape Stasis . | . . . Rewire . | . . . Trap 3 | . . 3 Miscellaneous 4 | . . 4 Route ------- -11/Scrapyard -10/Materials (discovered 5 exits: *Mat x3 / [*Min] / *Sub) -10/Subcaves (discovered 2 exits: Mat / *Rec) History --------- Turn | Location | Event 8 | -11/Scrapyard | Discovered new exit (range 15) 80 | -11/Scrapyard | Entered Materials 253 | -10/Materials | Discovered new exit (range 16) 309 | -10/Materials | Build established: Mutant 561 | -10/Materials | Discovered new exit (range 15) 636 | -10/Materials | Discovered new exit (range 7) 706 | -10/Materials | Identified exit to Subcaves 706 | -10/Materials | Identified exit to Materials 756 | -10/Materials | Loaded intel: 2 recycling unit locations 824 | -10/Materials | Learned Storage trap positions 844 | -10/Materials | Learned Storage emergency access door positions 872 | -10/Materials | Loaded intel: 16 trap records 976 | -10/Materials | Prayed at D.C.S.S. Altar Unit 978 | -10/Materials | Entered Subcaves 979 | -10/Subcaves | Identified exit to Materials 1095 | -10/Subcaves | X0-1V1 sent hostile G-34 Mercenary (x3) 1225 | -10/Subcaves | Core integrity fell below 50% 1330 | -10/Subcaves | Energy generation permanently improved by X0-1V1 (+10; -100 max core) 1404 | -10/Subcaves | X0-1V1 sent hostile S-10 Pest (x3) 2079 | -10/Subcaves | System corruption reached 10% 2099 | -10/Subcaves | Core integrity restored by X0-1V1 (+37) 2118 | -10/Subcaves | Identified exit to Recycling 2118 | -10/Subcaves | X0-1V1 revealed exit location to -9/Recycling 2122 | -10/Subcaves | X0-1V1 sent hostile S-10 Pest (x5) 2126 | -10/Subcaves | X0-1V1 activates XOMVISION 2365 | -10/Subcaves | Shifting Twisted Machinery released Sub. Beam Cannon 2378 | -10/Subcaves | Shifting Twisted Machinery released Scrap Shield 2717 | -10/Subcaves | X0-1V1 activates XOMVISION 2757 | -10/Subcaves | X0-1V1 sent you into danger 2772 | -10/Subcaves | X0-1V1 mutated your Utility slot to Propulsion slot 2775 | -10/Subcaves | X0-1V1 tapped a No Entrance sign 2789 | -10/Subcaves | X0-1V1 sent hostile S-10 Pest (x3) 2819 | -10/Subcaves | Core integrity restored by X0-1V1 (+22) 2852 | -10/Subcaves | X0-1V1 sent you into danger 2861 | -10/Subcaves | X0-1V1 upgraded hostiles (x3) 2872 | -10/Subcaves | Core integrity fell below 20% 2872 | -10/Subcaves | X0-1V1 rescued you from certain death 2901 | -10/Subcaves | Lost 4 parts (1p2n1w) 2950 | -10/Subcaves | X0-1V1 sent you into danger 2954 | -10/Subcaves | Destroyed by Autobeam Turret with Autobeam Last Messages --------------- Launcher. 02913_ S-27 Virus destroyed. 02918_ Lgt. Nuclear Core fries itself beyond repair. 02918_ Acquired 7 matter. 02919_ Acquired 3 matter. 02921_ VTOL Module fries itself beyond repair. 02925_ Subatomizers dissect the Sub. Shrapnel Launcher. 02943_ X0-1V1: "I had everything to do with that." 02949_ X0-1V1: "Use it or lose it, I always say." 02949_ Beam Cannon fused. 02949_ Sub. Machine Gun fused. 02950_ X0-1V1: "Enjoy the ride!" 02951_ Machine disabled. 02954_ X0-1V1 wants to heat up the action around here (+296 heat). 02954_ X0-1V1: "This toy is broken." Map ----- +----------------------------------------------------+ | #? ## ?????????## %#??## | | ##? #????????# #??# | | ##?# ##????????# #?# | | ##?# #??????? ## ## | | ##?? #??????? % % ## ### | | ?### ##### ##??????? % ## ## ##?## | | ?# #????####???????? ### ##???# | | ## #??########?????? ## ##????? | | # #??# ##????## ## ##????? | | #?# #?????## #?## ## ##???? | | #? #??????## ##### ## ###?? | | ## #####??????# ## # ##? | | ## ## ######## ## #? | | # ## ### ## #? | | # #### ##?##### ##? | | ## ##??# % # #?##### ##?? | | ?## ##???# #### ## % ### ##??? | | ?## ####### #### ### #???? | | ?#% ### ## ## #?# #### ###???? | | ## # ## #?# #??# ! ###?????? | | # ## ?# ?## #??#### ##??###??? | | # #???# ###?###?????## #??## #### | | # ! ## ##??# #####>#####??# #?## # | | ### # #???# ##"""" """"#?# ### % | | ??#### #???# ?#" " "## ## % | | ?????## ##???## #?#"@ t "### ## # | | ??????## ## ##????###??# % #?# #### ### | | ???????### #?????????# #?######## ### | | ????????## % #??#?##???#"% "#??????# # | | ???????## ### ###?####%% ####?????# ## | | ??????## #??# ##?????###### | | ??????# ##??## t ####??????# | | ?????## ####??#### #?##### | | ????## ### #????## ### #### | | ???## ## ### ##?# #????# % ### | | ??## ### ##?# #### ##??# / | | ?## ##?###?## ## #### ## | | ## #?????## ###### | | ##????# ##???## | | ##??????# ###??## | | #??????# #?## | | # #??????# ## #??# | | ##### #???##?# ###### #??# ## | | ????## #???# ## ##???? ## #??# ###### | | ????## #???# ######?? #? ##?# ##??# | | ??### #??## ##?## ### ## #?# #??### | | #?# #??# #### #?## #????? | | ### ###??#### #??# ##????? | | ## ##???????## #??# ####### | | "#?????????## ## #?## # | +----------------------------------------------------+ Best States ------------- Heat Dissipation 25 Energy Generation 20 Energy Capacity 1050 Matter Stores 900 Matter Capacity 900 Sight Range 21 Terrain Scan Density 10 Armor Coverage 800 Evasion (%) 50 Targeting Accuracy 5 Recoil Reduction 2 Item Schematics ----------------- None Robot Schematics ------------------ M-13 Machinist | -10/Materials | Hacked Fabricated ------------ Nothing Repaired ---------- Nothing Studied --------- None Alien Tech Used ----------------- None Achievements -------------- None Challenges ------------ None Game ------ Seed ScanMultinovaClaymores Manual? 0 Play Time 00:23:37 Cumulative 140.2 hours Start 2026.07.11 @ 00:23:07 End 2026.07.11 @ 01:01:51 Sessions 1 Manual Loads 0 Difficulty Rogue Special Mode None Game No. 99 Rogue 99 Adventurer 0 Explorer 0 Win Type - Total 2 Types 1/0/0/1/0/0/0/0/0/0 Lore% 48 Gallery% 58 Achievement% 53 Wizard Run 0 Options --------- Layout 2 ASCII 0 Keyboard 0 Movement Mouse Keybinds 0 Fullscreen 1 Font 48/Smallcaps Map View 50x44 Zoom Use 0% Tactical HUD 1 Map Filters NONE Filters NONE Steam 1 RUN: 2b1eed00-bd6c-400d-8ef9-c095d81a9c23